Workbook

Sheet Intro
E3: فاکتور هوشمند اکسل، محصولی از فرساران
D40: فرساران آموزش تخصصی دوره های Excel , Power BI , SQL Server ویژه کارشناسان
I51: www.farsaran.com

Sheet Kalaha
B1: تعریف کالا/خدمات
B2: کد کالا | C2: شرح محصول/ خدمات | D2: واحد | E2: مبلغ واحد
B3: اکسل_ت | C3: محصول تاریخ هجری شمسی در اکسل | D3: عدد | E3: 200000
B4: حبابی | C4: نمودار حبابی نقشه استان های ایران | D4: عدد | E4: 400000
B5: اکسل_پ | C5: دوره اکسل پیشرفته | D5: ساعت | E5: 400000
B6: اکسل_م | C6: دوره اکسل پیشرفته | D6: ساعت | E6: 550000
B7: اکسس_پ | C7: دوره اکسس پیشرفته | D7: ساعت | E7: 5500000
B8: 1001 | C8: شرح محصول شماره 1 | D8: متر مربع | E8: 5540000
B9: 1002 | C9: شرح محصول شماره 2 | D9: ساعت | E9: 12121
B10: 1003 | C10: شرح محصول شماره 3 | D10: ساعت | E10: 1555500
B11: 1004 | C11: شرح محصول شماره 4 | D11: ساعت | E11: 100000
B12: 1005 | C12: شرح محصول شماره 5 | D12: کیلو گرم | E12: 500000
B13: 1006 | C13: شرح محصول شماره 6 | D13: تن | E13: 500000
B14: 1007 | C14: شرح محصول شماره 7 | D14: تن | E14: 4540000
B15: 1008 | C15: شرح محصول شماره 8 | D15: بسته 12 عددی | E15: 1500

Sheet Moshtarian
B1: تعریف اطلاعات مشتریان
B2: کد مشتری | C2: نام شخص حقیقی/حقوقی | D2: شماره اقتصادی | E2: شماره ثبت / شماره ملی | F2: استان | G2: کدپستی | H2: شهر | I2: نشانی کامل | J2: شماره تلفن
B3: cobel | C3: شرکت کوبل دارو | D3: 1234560000 | E3: 111112 | F3: تهران | G3: کد پستی 1 | H3: تهران | I3: نشانی کامل تهران و .... 1 | J3: تلفن 1
B4: دعبید | C4: شرکت دارو سازی عبیدی (سهامی خاص) | D4: 8800000009 | E4: 292929 | F4: تهران | G4: کد پستی 2 | H4: تهران | I4: نشانی کامل تهران و .... 2 | J4: تلفن 2
B5: آشنا | C5: کارگزاری سهم آشنا | D5: 8800000010 | E5: 0000222 | F5: تهران | G5: کد پستی 3 | H5: تهران | I5: نشانی کامل تهران و .... 3 | J5: تلفن 3
B6: آبان | C6: کارگزاری آبان | D6: 8800000011 | E6: 00022222 | F6: تهران | G6: کد پستی 4 | H6: تهران | I6: نشانی کامل تهران و .... 4 | J6: تلفن 4
B7: شکبیر | C7: شرکت پتروشیمی امیر کبیر | D7: 8800000012 | E7: 02020202 | F7: خوزستان | G7: کد پستی 5 | H7: ماهشهر | I7: نشانی کامل اهواز و .... 5 | J7: تلفن 5
B8: فخوز | C8: شرکت فولاد خوزستان | D8: 90909090900 | E8: 911111000 | F8: خوزستان | G8: کد پستی 6 | H8: اهواز | I8: نشانی کامل اهواز و .... 6 | J8: تلفن 6

Sheet Header
B1: اطلاعات بالای فاکتور
B2: شماره فاکتور | C2: تاریخ | D2: کد شخص حقیقی/حقوقی | E2: شرح فاکتور | F2: پیش فاکتور | G2: نقدی_غیر نقدی | H2: سایر توضیحات
B3: 100 | C3: 930211 | D3: cobel | E3: شرح فاکتور شماره 1 | F3: 1 | G3: ن
B4: 101 | C4: 930517 | D4: دعبید | E4: هر شرح دلخواهی را وارد کنید | G4: غ
B5: 102 | C5: 920312 | D5: فخوز | E5: هر شرح دلخواهی را وارد کنید
B6: 103 | C6: 920312 | D6: شکبیر | E6: به صورت چک بود | F6: 1 | G6: غ
B7: 105 | C7: 940213 | D7: دعبید | F7: 1

Sheet Detail
A1: TRUE | B1: جزئیات فاکتور (کالاها/خدمات) | Y1: TRUE
B2: Invoice_number_count | C2: شماره فاکتور | D2: ردیف | E2: code_kala | F2: شرح کالا | G2: تعداد/ مقدار | H2: مبلغ واحد | I2: مبلغ تخفیف | J2: مبلغ اضافات | K2: جمع عوارض و مالیات
B3: =tblDetail[[#This Row],[شماره فاکتور]]&"__"&tblDetail[[#This Row],[ردیف]] -> 100__1 | C3: 100 | D3: 1 | E3: اکسل_م | F3: =VLOOKUP(tblDetail[[#This Row],[code_kala]],tblKalaha[],2,0) -> دوره اکسل پیشرفته | G3: 33 | H3: 550000 | I3: 1000 | J3: 20000 | K3: 1500
B4: =tblDetail[[#This Row],[شماره فاکتور]]&"__"&tblDetail[[#This Row],[ردیف]] -> 100__2 | C4: 100 | D4: 2 | E4: اکسل_پ | F4: =VLOOKUP(tblDetail[[#This Row],[code_kala]],tblKalaha[],2,0) -> دوره اکسل پیشرفته | G4: 20 | H4: 400000 | I4: 2000 | J4: 88 | K4: 1840
B5: =tblDetail[[#This Row],[شماره فاکتور]]&"__"&tblDetail[[#This Row],[ردیف]] -> 100__3 | C5: 100 | D5: 3 | E5: حبابی | F5: =VLOOKUP(tblDetail[[#This Row],[code_kala]],tblKalaha[],2,0) -> نمودار حبابی نقشه استان های ایران | G5: 2 | H5: 400000 | I5: 0 | J5: 88
B6: =tblDetail[[#This Row],[شماره فاکتور]]&"__"&tblDetail[[#This Row],[ردیف]] -> 100__4 | C6: 100 | D6: 4 | E6: اکسس_پ | F6: =VLOOKUP(tblDetail[[#This Row],[code_kala]],tblKalaha[],2,0) -> دوره اکسس پیشرفته | G6: 40 | H6: 5500000 | I6: 0 | J6: 88
B7: =tblDetail[[#This Row],[شماره فاکتور]]&"__"&tblDetail[[#This Row],[ردیف]] -> 101__1 | C7: 101 | D7: 1 | E7: 1001 | F7: =VLOOKUP(tblDetail[[#This Row],[code_kala]],tblKalaha[],2,0) -> شرح محصول شماره 1 | G7: 8999 | H7: 5540000 | I7: 0 | J7: 20000
B8: =tblDetail[[#This Row],[شماره فاکتور]]&"__"&tblDetail[[#This Row],[ردیف]] -> 101__2 | C8: 101 | D8: 2 | E8: 1002 | F8: =VLOOKUP(tblDetail[[#This Row],[code_kala]],tblKalaha[],2,0) -> شرح محصول شماره 2 | G8: 1000 | H8: 12121 | I8: 0
B9: =tblDetail[[#This Row],[شماره فاکتور]]&"__"&tblDetail[[#This Row],[ردیف]] -> 101__3 | C9: 101 | D9: 3 | E9: 1003 | F9: =VLOOKUP(tblDetail[[#This Row],[code_kala]],tblKalaha[],2,0) -> شرح محصول شماره 3 | G9: 100 | H9: 1555500 | I9: 0
B10: =tblDetail[[#This Row],[شماره فاکتور]]&"__"&tblDetail[[#This Row],[ردیف]] -> 101__4 | C10: 101 | D10: 4 | E10: 1004 | F10: =VLOOKUP(tblDetail[[#This Row],[code_kala]],tblKalaha[],2,0) -> شرح محصول شماره 4 | G10: 10200 | H10: 100000 | I10: 0 | J10: 20000
B11: =tblDetail[[#This Row],[شماره فاکتور]]&"__"&tblDetail[[#This Row],[ردیف]] -> 102__1 | C11: 102 | D11: 1 | E11: حبابی | F11: =VLOOKUP(tblDetail[[#This Row],[code_kala]],tblKalaha[],2,0) -> نمودار حبابی نقشه استان های ایران | G11: 5 | H11: 400000 | I11: 0
B12: =tblDetail[[#This Row],[شماره فاکتور]]&"__"&tblDetail[[#This Row],[ردیف]] -> 102__2 | C12: 102 | D12: 2 | E12: اکسس_پ | F12: =VLOOKUP(tblDetail[[#This Row],[code_kala]],tblKalaha[],2,0) -> دوره اکسس پیشرفته | G12: 3333 | H12: 5500000 | I12: 0
B13: =tblDetail[[#This Row],[شماره فاکتور]]&"__"&tblDetail[[#This Row],[ردیف]] -> 102__3 | C13: 102 | D13: 3 | E13: 1003 | F13: =VLOOKUP(tblDetail[[#This Row],[code_kala]],tblKalaha[],2,0) -> شرح محصول شماره 3 | G13: 1 | H13: 1555500 | I13: 0 | J13: 20000
B14: =tblDetail[[#This Row],[شماره فاکتور]]&"__"&tblDetail[[#This Row],[ردیف]] -> 102__4 | C14: 102 | D14: 4 | E14: 1004 | F14: =VLOOKUP(tblDetail[[#This Row],[code_kala]],tblKalaha[],2,0) -> شرح محصول شماره 4 | G14: 5000 | H14: 100000 | I14: 0
B15: =tblDetail[[#This Row],[شماره فاکتور]]&"__"&tblDetail[[#This Row],[ردیف]] -> 102__5 | C15: 102 | D15: 5 | E15: 1008 | F15: =VLOOKUP(tblDetail[[#This Row],[code_kala]],tblKalaha[],2,0) -> شرح محصول شماره 8 | G15: 1100 | H15: 1500 | I15: 0
B16: =tblDetail[[#This Row],[شماره فاکتور]]&"__"&tblDetail[[#This Row],[ردیف]] -> 103__1 | C16: 103 | D16: 1 | E16: اکسل_م | F16: =VLOOKUP(tblDetail[[#This Row],[code_kala]],tblKalaha[],2,0) -> دوره اکسل پیشرفته | G16: 30 | H16: 550000
B17: =tblDetail[[#This Row],[شماره فاکتور]]&"__"&tblDetail[[#This Row],[ردیف]] -> 103__2 | C17: 103 | D17: 2 | E17: حبابی | F17: =VLOOKUP(tblDetail[[#This Row],[code_kala]],tblKalaha[],2,0) -> نمودار حبابی نقشه استان های ایران | G17: 5 | H17: 400000
B18: =tblDetail[[#This Row],[شماره فاکتور]]&"__"&tblDetail[[#This Row],[ردیف]] -> 104__1 | C18: 104 | D18: 1 | E18: اکسل_پ | F18: =VLOOKUP(tblDetail[[#This Row],[code_kala]],tblKalaha[],2,0) -> دوره اکسل پیشرفته | H18: 400000
B19: =tblDetail[[#This Row],[شماره فاکتور]]&"__"&tblDetail[[#This Row],[ردیف]] -> 105__1 | C19: 105 | D19: 1 | E19: اکسل_پ | F19: =VLOOKUP(tblDetail[[#This Row],[code_kala]],tblKalaha[],2,0) -> دوره اکسل پیشرفته | H19: 400000
B20: =tblDetail[[#This Row],[شماره فاکتور]]&"__"&tblDetail[[#This Row],[ردیف]] -> 105__2 | C20: 105 | D20: 2 | E20: اکسل_م | F20: =VLOOKUP(tblDetail[[#This Row],[code_kala]],tblKalaha[],2,0) -> دوره اکسل پیشرفته | H20: 550000
B21: =tblDetail[[#This Row],[شماره فاکتور]]&"__"&tblDetail[[#This Row],[ردیف]] -> 105__3 | C21: 105 | D21: 3 | E21: اکسل_پ | F21: =VLOOKUP(tblDetail[[#This Row],[code_kala]],tblKalaha[],2,0) -> دوره اکسل پیشرفته | H21: 400000
B22: =tblDetail[[#This Row],[شماره فاکتور]]&"__"&tblDetail[[#This Row],[ردیف]] -> 105__4 | C22: 105 | D22: 4 | E22: اکسل_پ | F22: =VLOOKUP(tblDetail[[#This Row],[code_kala]],tblKalaha[],2,0) -> دوره اکسل پیشرفته
B23: =tblDetail[[#This Row],[شماره فاکتور]]&"__"&tblDetail[[#This Row],[ردیف]] -> 105__5 | C23: 105 | D23: 5 | E23: اکسل_پ | F23: =VLOOKUP(tblDetail[[#This Row],[code_kala]],tblKalaha[],2,0) -> دوره اکسل پیشرفته
B24: =tblDetail[[#This Row],[شماره فاکتور]]&"__"&tblDetail[[#This Row],[ردیف]] -> 105__6 | C24: 105 | D24: 6 | E24: اکسل_پ | F24: =VLOOKUP(tblDetail[[#This Row],[code_kala]],tblKalaha[],2,0) -> دوره اکسل پیشرفته
B25: =tblDetail[[#This Row],[شماره فاکتور]]&"__"&tblDetail[[#This Row],[ردیف]] -> 105__7 | C25: 105 | D25: 7 | E25: اکسل_پ | F25: =VLOOKUP(tblDetail[[#This Row],[code_kala]],tblKalaha[],2,0) -> دوره اکسل پیشرفته
B26: =tblDetail[[#This Row],[شماره فاکتور]]&"__"&tblDetail[[#This Row],[ردیف]] -> 105__8 | C26: 105 | D26: 8 | E26: اکسل_پ | F26: =VLOOKUP(tblDetail[[#This Row],[code_kala]],tblKalaha[],2,0) -> دوره اکسل پیشرفته
B27: =tblDetail[[#This Row],[شماره فاکتور]]&"__"&tblDetail[[#This Row],[ردیف]] -> 105__9 | C27: 105 | D27: 9 | E27: اکسل_پ | F27: =VLOOKUP(tblDetail[[#This Row],[code_kala]],tblKalaha[],2,0) -> دوره اکسل پیشرفته
B28: =tblDetail[[#This Row],[شماره فاکتور]]&"__"&tblDetail[[#This Row],[ردیف]] -> 105__10 | C28: 105 | D28: 10 | E28: اکسل_پ | F28: =VLOOKUP(tblDetail[[#This Row],[code_kala]],tblKalaha[],2,0) -> دوره اکسل پیشرفته
B29: =tblDetail[[#This Row],[شماره فاکتور]]&"__"&tblDetail[[#This Row],[ردیف]] -> 105__11 | C29: 105 | D29: 11 | E29: اکسل_پ | F29: =VLOOKUP(tblDetail[[#This Row],[code_kala]],tblKalaha[],2,0) -> دوره اکسل پیشرفته
B30: =tblDetail[[#This Row],[شماره فاکتور]]&"__"&tblDetail[[#This Row],[ردیف]] -> 105__12 | C30: 105 | D30: 12 | E30: اکسل_پ | F30: =VLOOKUP(tblDetail[[#This Row],[code_kala]],tblKalaha[],2,0) -> دوره اکسل پیشرفته
B31: =tblDetail[[#This Row],[شماره فاکتور]]&"__"&tblDetail[[#This Row],[ردیف]] -> 105__13 | C31: 105 | D31: 13 | E31: اکسل_پ | F31: =VLOOKUP(tblDetail[[#This Row],[code_kala]],tblKalaha[],2,0) -> دوره اکسل پیشرفته
B32: =tblDetail[[#This Row],[شماره فاکتور]]&"__"&tblDetail[[#This Row],[ردیف]] -> 105__14 | C32: 105 | D32: 14 | E32: اکسل_پ | F32: =VLOOKUP(tblDetail[[#This Row],[code_kala]],tblKalaha[],2,0) -> دوره اکسل پیشرفته
B33: =tblDetail[[#This Row],[شماره فاکتور]]&"__"&tblDetail[[#This Row],[ردیف]] -> 105__15 | C33: 105 | D33: 15 | E33: اکسل_پ | F33: =VLOOKUP(tblDetail[[#This Row],[code_kala]],tblKalaha[],2,0) -> دوره اکسل پیشرفته
B34: =tblDetail[[#This Row],[شماره فاکتور]]&"__"&tblDetail[[#This Row],[ردیف]] -> 105__16 | C34: 105 | D34: 16 | E34: اکسل_پ | F34: =VLOOKUP(tblDetail[[#This Row],[code_kala]],tblKalaha[],2,0) -> دوره اکسل پیشرفته
B35: =tblDetail[[#This Row],[شماره فاکتور]]&"__"&tblDetail[[#This Row],[ردیف]] -> 105__17 | C35: 105 | D35: 17 | E35: اکسل_پ | F35: =VLOOKUP(tblDetail[[#This Row],[code_kala]],tblKalaha[],2,0) -> دوره اکسل پیشرفته
B36: =tblDetail[[#This Row],[شماره فاکتور]]&"__"&tblDetail[[#This Row],[ردیف]] -> 105__18 | C36: 105 | D36: 18 | E36: اکسل_پ | F36: =VLOOKUP(tblDetail[[#This Row],[code_kala]],tblKalaha[],2,0) -> دوره اکسل پیشرفته
B37: =tblDetail[[#This Row],[شماره فاکتور]]&"__"&tblDetail[[#This Row],[ردیف]] -> 105__19 | C37: 105 | D37: 19 | E37: اکسل_پ | F37: =VLOOKUP(tblDetail[[#This Row],[code_kala]],tblKalaha[],2,0) -> دوره اکسل پیشرفته
B38: =tblDetail[[#This Row],[شماره فاکتور]]&"__"&tblDetail[[#This Row],[ردیف]] -> 105__20 | C38: 105 | D38: 20 | E38: اکسل_پ | F38: =VLOOKUP(tblDetail[[#This Row],[code_kala]],tblKalaha[],2,0) -> دوره اکسل پیشرفته

Sheet Print
BB1: =VLOOKUP(invoice_number,tblHeader[],3,0) -> دعبید
P2: =IF(VLOOKUP(invoice_number,tblHeader[],5,0)=1,"پیش فاکتور","صورت حساب فروش کالا و خدمات") -> صورت حساب فروش کالا و خدمات | AI2: شماره سریال: | AM2: 101
AI3: تاریخ: | AM3: =VLOOKUP(invoice_number,tblHeader[],2,0) -> 930517
B4: مشخصات فروشنده
B5: نام شخص حقیقی/حقوقی: | H5: فاکتور هوشمند اکسل فرساران | Q5: شماره اقتصادی: | U5: 411374000000 | AA5: شماره ثبت / شماره ملی: | AG5: 171717 | AJ5: شناسه ملی: | AM5: 1000000054
B6: نشانی: | D6: تهران، خیابان مطهری و ... | Q6: کدپستی: | U6: 1684700000 | AA6: شماره تلفن: | AD6: 021 1100 2222 | AJ6: شماره فکس: | AM6: 021 1111 8411
B7: مشخصات خریدار
B8: نام شخص حقیقی/حقوقی: | H8: =VLOOKUP(customer_number,tblMoshtarian[],2,0) -> شرکت دارو سازی عبیدی (سهامی خاص) | Q8: شماره اقتصادی: | U8: =VLOOKUP(customer_number,tblMoshtarian[],3,0) -> 8800000009 | AA8: شماره ثبت / شماره ملی: | AG8: =VLOOKUP(customer_number,tblMoshtarian[],4,0) -> 292929
B9: نشانی کامل: استان: | H9: =VLOOKUP(customer_number,tblMoshtarian[],5,0) -> تهران | Q9: کدپستی: | U9: =VLOOKUP(customer_number,tblMoshtarian[],6,0) -> کد پستی 2 | AA9: شهر: | AC9: =VLOOKUP(customer_number,tblMoshtarian[],7,0) -> تهران
B10: نشانی: | D10: =VLOOKUP(customer_number,tblMoshtarian[],8,0) -> نشانی کامل تهران و .... 2 | AA10: شماره تلفن: | AD10: =VLOOKUP(customer_number,tblMoshtarian[],9,0) -> تلفن 2
B11: مشخصات کالا یا خدمات مورد معامله
B12: ردیف | D12: کد کالا | G12: شرح کالا / خدمات | N12: تعداد/ مقدار | P12: واحد اندازه گیری | S12: مبلغ واحد | W12: مبلغ کل | AA12: مبلغ تخفیف | AD12: مبلغ اضافات | AG12: مبلغ کل پس از تخفیف و اضافات | AK12: جمع عوارض و مالیات | AN12: خالص فاکتور
B13: 1 | D13: =IFERROR(VLOOKUP(BB13,tblDetail[],4,0),"") -> 1001 | G13: =IFERROR(VLOOKUP(BB13,tblDetail[],5,0),"- - - -") -> شرح محصول شماره 1 | N13: =IFERROR(VLOOKUP(BB13,tblDetail[],6,0),"") -> 8999 | P13: =IFERROR(VLOOKUP(D13,tblKalaha[],3,0),"") -> متر مربع | S13: =IFERROR(VLOOKUP(BB13,tblDetail[],7,0),"") -> 5540000 | W13: =IFERROR(N13*S13,"") -> 49854460000 | AA13: =IFERROR(VLOOKUP(BB13,tblDetail[],8,0),"") -> 0 | AD13: =IFERROR(VLOOKUP(BB13,tblDetail[],9,0),"") -> 20000 | AG13: =IFERROR(W13-AA13+AD13,"") -> 49854480000 | AK13: =IFERROR(VLOOKUP(BB13,tblDetail[],10,0),"") -> 0 | AN13: =IFERROR(AG13+AK13,"") -> 49854480000 | BB13: =invoice_number &"__"&B13 -> 101__1
B14: 2 | D14: =IFERROR(VLOOKUP(BB14,tblDetail[],4,0),"") -> 1002 | G14: =IFERROR(VLOOKUP(BB14,tblDetail[],5,0),"- - - -") -> شرح محصول شماره 2 | N14: =IFERROR(VLOOKUP(BB14,tblDetail[],6,0),"") -> 1000 | P14: =IFERROR(VLOOKUP(D14,tblKalaha[],3,0),"") -> ساعت | S14: =IFERROR(VLOOKUP(BB14,tblDetail[],7,0),"") -> 12121 | W14: =IFERROR(N14*S14,"") -> 12121000 | AA14: =IFERROR(VLOOKUP(BB14,tblDetail[],8,0),"") -> 0 | AD14: =IFERROR(VLOOKUP(BB14,tblDetail[],9,0),"") -> 0 | AG14: =IFERROR(W14-AA14+AD14,"") -> 12121000 | AK14: =IFERROR(VLOOKUP(BB14,tblDetail[],10,0),"") -> 0 | AN14: =IFERROR(AG14+AK14,"") -> 12121000 | BB14: 101__2
B15: 3 | D15: =IFERROR(VLOOKUP(BB15,tblDetail[],4,0),"") -> 1003 | G15: =IFERROR(VLOOKUP(BB15,tblDetail[],5,0),"- - - -") -> شرح محصول شماره 3 | N15: =IFERROR(VLOOKUP(BB15,tblDetail[],6,0),"") -> 100 | P15: =IFERROR(VLOOKUP(D15,tblKalaha[],3,0),"") -> ساعت | S15: =IFERROR(VLOOKUP(BB15,tblDetail[],7,0),"") -> 1555500 | W15: 155550000 | AA15: =IFERROR(VLOOKUP(BB15,tblDetail[],8,0),"") -> 0 | AD15: =IFERROR(VLOOKUP(BB15,tblDetail[],9,0),"") -> 0 | AG15: 155550000 | AK15: =IFERROR(VLOOKUP(BB15,tblDetail[],10,0),"") -> 0 | AN15: 155550000 | BB15: 101__3
B16: 4 | D16: =IFERROR(VLOOKUP(BB16,tblDetail[],4,0),"") -> 1004 | G16: =IFERROR(VLOOKUP(BB16,tblDetail[],5,0),"- - - -") -> شرح محصول شماره 4 | N16: =IFERROR(VLOOKUP(BB16,tblDetail[],6,0),"") -> 10200 | P16: =IFERROR(VLOOKUP(D16,tblKalaha[],3,0),"") -> ساعت | S16: =IFERROR(VLOOKUP(BB16,tblDetail[],7,0),"") -> 100000 | W16: 1020000000 | AA16: =IFERROR(VLOOKUP(BB16,tblDetail[],8,0),"") -> 0 | AD16: =IFERROR(VLOOKUP(BB16,tblDetail[],9,0),"") -> 20000 | AG16: 1020020000 | AK16: =IFERROR(VLOOKUP(BB16,tblDetail[],10,0),"") -> 0 | AN16: 1020020000 | BB16: 101__4
B17: 5 | D17: =IFERROR(VLOOKUP(BB17,tblDetail[],4,0),"") ->  | G17: =IFERROR(VLOOKUP(BB17,tblDetail[],5,0),"- - - -") -> - - - - | N17: =IFERROR(VLOOKUP(BB17,tblDetail[],6,0),"") ->  | P17: =IFERROR(VLOOKUP(D17,tblKalaha[],3,0),"") ->  | S17: =IFERROR(VLOOKUP(BB17,tblDetail[],7,0),"") ->  | AA17: =IFERROR(VLOOKUP(BB17,tblDetail[],8,0),"") ->  | AD17: =IFERROR(VLOOKUP(BB17,tblDetail[],9,0),"") ->  | AK17: =IFERROR(VLOOKUP(BB17,tblDetail[],10,0),"") ->  | BB17: 101__5
B18: 6 | D18: =IFERROR(VLOOKUP(BB18,tblDetail[],4,0),"") ->  | G18: =IFERROR(VLOOKUP(BB18,tblDetail[],5,0),"- - - -") -> - - - - | N18: =IFERROR(VLOOKUP(BB18,tblDetail[],6,0),"") ->  | P18: =IFERROR(VLOOKUP(D18,tblKalaha[],3,0),"") ->  | S18: =IFERROR(VLOOKUP(BB18,tblDetail[],7,0),"") ->  | AA18: =IFERROR(VLOOKUP(BB18,tblDetail[],8,0),"") ->  | AD18: =IFERROR(VLOOKUP(BB18,tblDetail[],9,0),"") ->  | AK18: =IFERROR(VLOOKUP(BB18,tblDetail[],10,0),"") ->  | BB18: 101__6
B19: 7 | D19: =IFERROR(VLOOKUP(BB19,tblDetail[],4,0),"") ->  | G19: =IFERROR(VLOOKUP(BB19,tblDetail[],5,0),"- - - -") -> - - - - | N19: =IFERROR(VLOOKUP(BB19,tblDetail[],6,0),"") ->  | P19: =IFERROR(VLOOKUP(D19,tblKalaha[],3,0),"") ->  | S19: =IFERROR(VLOOKUP(BB19,tblDetail[],7,0),"") ->  | AA19: =IFERROR(VLOOKUP(BB19,tblDetail[],8,0),"") ->  | AD19: =IFERROR(VLOOKUP(BB19,tblDetail[],9,0),"") ->  | AK19: =IFERROR(VLOOKUP(BB19,tblDetail[],10,0),"") ->  | BB19: 101__7
B20: 8 | D20: =IFERROR(VLOOKUP(BB20,tblDetail[],4,0),"") ->  | G20: =IFERROR(VLOOKUP(BB20,tblDetail[],5,0),"- - - -") -> - - - - | N20: =IFERROR(VLOOKUP(BB20,tblDetail[],6,0),"") ->  | P20: =IFERROR(VLOOKUP(D20,tblKalaha[],3,0),"") ->  | S20: =IFERROR(VLOOKUP(BB20,tblDetail[],7,0),"") ->  | AA20: =IFERROR(VLOOKUP(BB20,tblDetail[],8,0),"") ->  | AD20: =IFERROR(VLOOKUP(BB20,tblDetail[],9,0),"") ->  | AK20: =IFERROR(VLOOKUP(BB20,tblDetail[],10,0),"") ->  | BB20: 101__8
B21: 9 | D21: =IFERROR(VLOOKUP(BB21,tblDetail[],4,0),"") ->  | G21: =IFERROR(VLOOKUP(BB21,tblDetail[],5,0),"- - - -") -> - - - - | N21: =IFERROR(VLOOKUP(BB21,tblDetail[],6,0),"") ->  | P21: =IFERROR(VLOOKUP(D21,tblKalaha[],3,0),"") ->  | S21: =IFERROR(VLOOKUP(BB21,tblDetail[],7,0),"") ->  | AA21: =IFERROR(VLOOKUP(BB21,tblDetail[],8,0),"") ->  | AD21: =IFERROR(VLOOKUP(BB21,tblDetail[],9,0),"") ->  | AK21: =IFERROR(VLOOKUP(BB21,tblDetail[],10,0),"") ->  | BB21: 101__9
B22: 10 | D22: =IFERROR(VLOOKUP(BB22,tblDetail[],4,0),"") ->  | G22: =IFERROR(VLOOKUP(BB22,tblDetail[],5,0),"- - - -") -> - - - - | N22: =IFERROR(VLOOKUP(BB22,tblDetail[],6,0),"") ->  | P22: =IFERROR(VLOOKUP(D22,tblKalaha[],3,0),"") ->  | S22: =IFERROR(VLOOKUP(BB22,tblDetail[],7,0),"") ->  | AA22: =IFERROR(VLOOKUP(BB22,tblDetail[],8,0),"") ->  | AD22: =IFERROR(VLOOKUP(BB22,tblDetail[],9,0),"") ->  | AK22: =IFERROR(VLOOKUP(BB22,tblDetail[],10,0),"") ->  | BB22: 101__10
B23: 11 | D23: =IFERROR(VLOOKUP(BB23,tblDetail[],4,0),"") ->  | G23: =IFERROR(VLOOKUP(BB23,tblDetail[],5,0),"- - - -") -> - - - - | N23: =IFERROR(VLOOKUP(BB23,tblDetail[],6,0),"") ->  | P23: =IFERROR(VLOOKUP(D23,tblKalaha[],3,0),"") ->  | S23: =IFERROR(VLOOKUP(BB23,tblDetail[],7,0),"") ->  | W23: =IFERROR(N23*S23,"") ->  | AA23: =IFERROR(VLOOKUP(BB23,tblDetail[],8,0),"") ->  | AD23: =IFERROR(VLOOKUP(BB23,tblDetail[],9,0),"") ->  | AG23: =IFERROR(W23-AA23+AD23,"") ->  | AK23: =IFERROR(VLOOKUP(BB23,tblDetail[],10,0),"") ->  | AN23: =IFERROR(AG23+AK23,"") ->  | BB23: 101__11
B24: 12 | D24: =IFERROR(VLOOKUP(BB24,tblDetail[],4,0),"") ->  | G24: =IFERROR(VLOOKUP(BB24,tblDetail[],5,0),"- - - -") -> - - - - | N24: =IFERROR(VLOOKUP(BB24,tblDetail[],6,0),"") ->  | P24: =IFERROR(VLOOKUP(D24,tblKalaha[],3,0),"") ->  | S24: =IFERROR(VLOOKUP(BB24,tblDetail[],7,0),"") ->  | AA24: =IFERROR(VLOOKUP(BB24,tblDetail[],8,0),"") ->  | AD24: =IFERROR(VLOOKUP(BB24,tblDetail[],9,0),"") ->  | AK24: =IFERROR(VLOOKUP(BB24,tblDetail[],10,0),"") ->  | BB24: 101__12
B25: 13 | D25: =IFERROR(VLOOKUP(BB25,tblDetail[],4,0),"") ->  | G25: =IFERROR(VLOOKUP(BB25,tblDetail[],5,0),"- - - -") -> - - - - | N25: =IFERROR(VLOOKUP(BB25,tblDetail[],6,0),"") ->  | P25: =IFERROR(VLOOKUP(D25,tblKalaha[],3,0),"") ->  | S25: =IFERROR(VLOOKUP(BB25,tblDetail[],7,0),"") ->  | AA25: =IFERROR(VLOOKUP(BB25,tblDetail[],8,0),"") ->  | AD25: =IFERROR(VLOOKUP(BB25,tblDetail[],9,0),"") ->  | AK25: =IFERROR(VLOOKUP(BB25,tblDetail[],10,0),"") ->  | BB25: 101__13
B26: 14 | D26: =IFERROR(VLOOKUP(BB26,tblDetail[],4,0),"") ->  | G26: =IFERROR(VLOOKUP(BB26,tblDetail[],5,0),"- - - -") -> - - - - | N26: =IFERROR(VLOOKUP(BB26,tblDetail[],6,0),"") ->  | P26: =IFERROR(VLOOKUP(D26,tblKalaha[],3,0),"") ->  | S26: =IFERROR(VLOOKUP(BB26,tblDetail[],7,0),"") ->  | AA26: =IFERROR(VLOOKUP(BB26,tblDetail[],8,0),"") ->  | AD26: =IFERROR(VLOOKUP(BB26,tblDetail[],9,0),"") ->  | AK26: =IFERROR(VLOOKUP(BB26,tblDetail[],10,0),"") ->  | BB26: 101__14
B27: 15 | D27: =IFERROR(VLOOKUP(BB27,tblDetail[],4,0),"") ->  | G27: =IFERROR(VLOOKUP(BB27,tblDetail[],5,0),"- - - -") -> - - - - | N27: =IFERROR(VLOOKUP(BB27,tblDetail[],6,0),"") ->  | P27: =IFERROR(VLOOKUP(D27,tblKalaha[],3,0),"") ->  | S27: =IFERROR(VLOOKUP(BB27,tblDetail[],7,0),"") ->  | AA27: =IFERROR(VLOOKUP(BB27,tblDetail[],8,0),"") ->  | AD27: =IFERROR(VLOOKUP(BB27,tblDetail[],9,0),"") ->  | AK27: =IFERROR(VLOOKUP(BB27,tblDetail[],10,0),"") ->  | BB27: 101__15
B28: 16 | D28: =IFERROR(VLOOKUP(BB28,tblDetail[],4,0),"") ->  | G28: =IFERROR(VLOOKUP(BB28,tblDetail[],5,0),"- - - -") -> - - - - | N28: =IFERROR(VLOOKUP(BB28,tblDetail[],6,0),"") ->  | P28: =IFERROR(VLOOKUP(D28,tblKalaha[],3,0),"") ->  | S28: =IFERROR(VLOOKUP(BB28,tblDetail[],7,0),"") ->  | AA28: =IFERROR(VLOOKUP(BB28,tblDetail[],8,0),"") ->  | AD28: =IFERROR(VLOOKUP(BB28,tblDetail[],9,0),"") ->  | AK28: =IFERROR(VLOOKUP(BB28,tblDetail[],10,0),"") ->  | BB28: 101__16
B29: 17 | D29: =IFERROR(VLOOKUP(BB29,tblDetail[],4,0),"") ->  | G29: =IFERROR(VLOOKUP(BB29,tblDetail[],5,0),"- - - -") -> - - - - | N29: =IFERROR(VLOOKUP(BB29,tblDetail[],6,0),"") ->  | P29: =IFERROR(VLOOKUP(D29,tblKalaha[],3,0),"") ->  | S29: =IFERROR(VLOOKUP(BB29,tblDetail[],7,0),"") ->  | AA29: =IFERROR(VLOOKUP(BB29,tblDetail[],8,0),"") ->  | AD29: =IFERROR(VLOOKUP(BB29,tblDetail[],9,0),"") ->  | AK29: =IFERROR(VLOOKUP(BB29,tblDetail[],10,0),"") ->  | BB29: 101__17
B30: 18 | D30: =IFERROR(VLOOKUP(BB30,tblDetail[],4,0),"") ->  | G30: =IFERROR(VLOOKUP(BB30,tblDetail[],5,0),"- - - -") -> - - - - | N30: =IFERROR(VLOOKUP(BB30,tblDetail[],6,0),"") ->  | P30: =IFERROR(VLOOKUP(D30,tblKalaha[],3,0),"") ->  | S30: =IFERROR(VLOOKUP(BB30,tblDetail[],7,0),"") ->  | AA30: =IFERROR(VLOOKUP(BB30,tblDetail[],8,0),"") ->  | AD30: =IFERROR(VLOOKUP(BB30,tblDetail[],9,0),"") ->  | AK30: =IFERROR(VLOOKUP(BB30,tblDetail[],10,0),"") ->  | BB30: 101__18
B31: 19 | D31: =IFERROR(VLOOKUP(BB31,tblDetail[],4,0),"") ->  | G31: =IFERROR(VLOOKUP(BB31,tblDetail[],5,0),"- - - -") -> - - - - | N31: =IFERROR(VLOOKUP(BB31,tblDetail[],6,0),"") ->  | P31: =IFERROR(VLOOKUP(D31,tblKalaha[],3,0),"") ->  | S31: =IFERROR(VLOOKUP(BB31,tblDetail[],7,0),"") ->  | W31: =IFERROR(N31*S31,"") ->  | AA31: =IFERROR(VLOOKUP(BB31,tblDetail[],8,0),"") ->  | AD31: =IFERROR(VLOOKUP(BB31,tblDetail[],9,0),"") ->  | AG31: =IFERROR(W31-AA31+AD31,"") ->  | AK31: =IFERROR(VLOOKUP(BB31,tblDetail[],10,0),"") ->  | AN31: =IFERROR(AG31+AK31,"") ->  | BB31: 101__19
B32: 20 | D32: =IFERROR(VLOOKUP(BB32,tblDetail[],4,0),"") ->  | G32: =IFERROR(VLOOKUP(BB32,tblDetail[],5,0),"- - - -") -> - - - - | N32: =IFERROR(VLOOKUP(BB32,tblDetail[],6,0),"") ->  | P32: =IFERROR(VLOOKUP(D32,tblKalaha[],3,0),"") ->  | S32: =IFERROR(VLOOKUP(BB32,tblDetail[],7,0),"") ->  | AA32: =IFERROR(VLOOKUP(BB32,tblDetail[],8,0),"") ->  | AD32: =IFERROR(VLOOKUP(BB32,tblDetail[],9,0),"") ->  | AK32: =IFERROR(VLOOKUP(BB32,tblDetail[],10,0),"") ->  | BB32: 101__20
B33: جمع کل | W33: =SUM(W13:Z32) -> 51042131000 | AA33: =SUM(AA13:AC32) -> 0 | AD33: =SUM(AD13:AF32) -> 40000 | AG33: =W33-AA33+AD33 -> 51042171000 | AK33: =SUM(AK13:AM32) -> 0 | AN33: =SUM(AN13:AQ32) -> 51042171000
B34: شرایط و نحوه فروش نقدی | G34: نقدی | I34: =IF(VLOOKUP(invoice_number,tblHeader[],6,0)="ن","þ","¨") -> ¨ | K34: غیر نقدی | N34: =IF(VLOOKUP(invoice_number,tblHeader[],6,0)="غ","þ","¨") -> þ | P34: =AbH(AN33) & " ریال " -> پنجاه و یک میلیارد و چهل و دو میلیون و یکصد و هفتاد و یک هزار ریال
B35: توضیحات | E35: =IF( LEN(VLOOKUP(invoice_number,tblHeader[],4,0))=0,"",VLOOKUP(invoice_number,tblHeader[],4,0)) -> هر شرح دلخواهی را وارد کنید | Z35: اینجا به سادگی می توانید توضیحاتی که برای هر فاکتور
Z36: یکسان و ثابت است را مانند شماره حساب و یا ... وارد نمایید.
Z37: شماره کارت: | AE37: 6219-8610-xxxx-1380
Z38: شماره شبا: | AD38: IR33-xxxx-0884-xxxx-4008-xxxx-01
B39: مهر و امضای فروشنده | W39: مهر و امضای خریدار
